Cogmind - Beta 17 @@@ ROGUE MODE // 2026.07.22 @ 18:53:46 Player: Arttano Result: Self-destructed Performance ------------- Evolutions (2) 1000 Regions Visited (6) 1200 Robots Destroyed (38) 190 Value Destroyed (1005) 1005 Prototype IDs (42) 840 Alien Tech Used (0) 0 Bonus (422) 422 TOTAL SCORE: 4657 Bonus ------- Follower Combat Kills 122 Aligned with FarCom 300 Cogmind --------- Core Integrity 380/550 Matter 218/300 Energy 100/100 System Corruption 0% Temperature Cool (0) Movement Rolling (140) Ox4 Location -8/Storage Parts ------- > --- POWER (1) -------- (None) > --- PROPULSION (4) --- Light Treads Light Treads Wheel > --- UTILITY (4) ------ High-capacity Storage Unit Improved Terrain Scanner Terrain Scan Processor Improved Light Armor Plating > --- WEAPON (2) ------- Light Assault Rifle Shotgun > --- INVENTORY (20) --- Ion Engine Improved Treads Aluminum Leg Improved Flight Unit Improved Flight Unit Improved Flight Unit Improved Flight Unit Improved Flight Unit Structural Scanner Machine Analyzer Sensor Array Improved Signal Interpreter 0b10 Alert Chip Hacking Suite Grenade Launcher Rocket Launcher Datajack Hammer Katana Peak State ------------ > --- POWER ------------ Ion Engine > --- PROPULSION ------- Light Treads Light Treads Light Treads Improved Flight Unit > --- UTILITY ---------- High-capacity Storage Unit Improved Terrain Scanner Terrain Scan Processor Improved Light Armor Plating > --- WEAPON ----------- Light Assault Rifle Shotgun > --- INVENTORY -------- Ion Engine Improved Treads Aluminum Leg Wheel Structural Scanner Machine Analyzer Sensor Array Improved Signal Interpreter 0b10 Alert Chip Hacking Suite Grenade Launcher Rocket Launcher Datajack Hammer Katana [Rating: 22] Favorites ----------- Power Ion Engine Engine Ion Engine Propulsion Light Treads Treads Light Treads Leg Aluminum Leg Wheel Compact Wheel Flight Unit Improved Flight Unit Utility High-capacity Storage Unit Device Seismic Detector Storage High-capacity Storage Unit Processor Terrain Scan Processor Protection Improved Light Armor Plating Weapon Assault Rifle Energy Gun Medium Laser Ballistic Gun Assault Rifle Launcher Rocket Launcher Special Melee Weapon Datajack Build | -11 -10 -10 -10 -9 -8 -8 ------- Run | Yrd Mat Min Exi Min Mat Sto Slots Evolved 4 | . . . . . 4 . Power . | . . . . . . . Propulsion 2 | . . . . . 2 . Utility 2 | . . . . . 2 . Weapon . | . . . . . . . Parts Attached 25 | 4 6 4 . 4 4 3 Power 2 | . . 1 . 1 . . Engine 2 | . . 1 . 1 . . Core . | . . . . . . . Reactor . | . . . . . . . Propulsion 9 | 2 1 2 . 1 2 1 Treads 5 | 1 1 1 . 1 1 . Leg . | . . . . . . . Wheel 3 | 1 . 1 . . 1 . Hover . | . . . . . . . Flight 1 | . . . . . . 1 Utility 6 | 1 1 1 . 1 1 1 Device 3 | 1 . 1 . 1 . . Storage 1 | . 1 . . . . . Processor 1 | . . . . . 1 . Hackware . | . . . . . . . Protection 1 | . . . . . . 1 Artifact . | . . . . . . . Weapon 8 | 1 4 . . 1 1 1 Energy Gun . | . . . . . . . Energy Cannon . | . . . . . . . Ballistic Gun 5 | 1 3 . . . 1 . Ballistic Cannon . | . . . . . . . Launcher 2 | . . . . 1 . 1 Special Weapon . | . . . . . . . Impact Weapon . | . . . . . . . Slashing Weapon . | . . . . . . . Piercing Weapon . | . . . . . . . Special Melee Weapon 1 | . 1 . . . . . Unidentified Prototypes 1 | . . . . . . 1 Parts Lost 12 | . 1 3 . 3 2 3 Power 3 | . . 1 . 1 . 1 Propulsion 5 | . 1 1 . 1 1 1 Utility 1 | . . 1 . . . . Weapon 3 | . . . . 1 1 1 Highest Loss Streak 3 | . 1 3 . 3 1 2 To Critical Strikes . | . . . . . . . Average Backups 10 | 6 8 12 12 14 13 16 Power 1 | 1 1 . 1 . 1 1 Propulsion 2 | 3 2 2 3 2 1 3 Utility 2 | . 1 2 2 4 4 5 Weapon 3 | 1 2 4 5 5 5 4 Tool/Special . | . . . . . . . Unused Backups 20 | . 6 . . . . 14 Power 3 | . 2 . . . . 1 Propulsion 6 | . . . . . . 6 Utility 7 | . 2 . . . . 5 Weapon 4 | . 2 . . . . 2 Tool/Special . | . . . . . . . Average Slot Usage (%) 98 | . 100 96 98 96 88 98 Engine 13 | . 14 14 14 13 9 9 Treads 18 | . 14 14 14 27 34 26 Wheel 10 | . 14 13 14 . . 9 Device 12 | . 14 10 12 10 9 9 Storage 13 | . 14 14 14 14 9 9 Processor 1 | . . . . . 8 9 Ballistic Gun 23 | . 27 28 16 18 13 14 Launcher 1 | . . . . 9 4 3 Special Melee Weapon 1 | . . . 11 . . . Peak Build Rating 22 | 8 10 10 10 12 16 22 Average Rating 10 | 6 8 9 9 11 15 19 On Entrance 10 | 6 7 10 10 9 12 16 Avg Prop Armor Cover (%) 13 | . 12 11 12 . 24 20 Naked Turns . | . . . . . . . Heaviest Build 54 | 14 52 52 50 52 52 54 Greatest Support 80 | 20 16 16 10 40 80 10 Greatest Overweight (x) 5 | . 3 4 4 1 5 5 Average Overweight (x) 1 | . . 3 4 1 . 5 Largest Inventory Capacity 20 | 8 20 20 20 20 20 20 Average Capacity 14 | 8 9 20 20 20 20 20 Most Carried 19 | 8 13 13 14 16 15 19 Average Carried 10 | 6 8 12 12 14 13 16 Final Capacity 20 | 8 20 20 20 20 20 20 Final Carried 19 | 7 12 12 14 16 13 19 Class Distribution -------------------- 75% | Mutant 16% | Skirmisher 6% | Scavenger-Skirmisher Dominant Class ---------------- Mutant | -10/Materials Mutant | -10/Mines Mutant | -10/Exiles Skirmisher | -9/Mines Skirmisher | -8/Materials Scavenger-Skirmisher | -8/Storage Resources | -11 -10 -10 -10 -9 -8 -8 ----------- Run | Yrd Mat Min Exi Min Mat Sto Matter Collected 1167 | 269 203 102 . 219 134 240 Remotely . | . . . . . . . Salvage Created 1358 | 88 311 102 . 147 481 229 Parts 66 | 15 19 5 . 7 14 6 Haulers Intercepted 1 | . . . . . . 1 Recyclers Shooed 1 | . . . . . 1 . Parts Field Recycled . | . . . . . . . Retrieved Matter . | . . . . . . . Parts Self-Destructed . | . . . . . . . Prevented . | . . . . . . . Parts Restored . | . . . . . . . Kills | -11 -10 -10 -10 -9 -8 -8 ------- Run | Yrd Mat Min Exi Min Mat Sto Combat Hostiles Destroyed 20 | . 3 3 . 4 8 2 Guns 14 | . 3 3 . 3 3 2 AOE 6 | . . . . 1 5 . Classes Destroyed 12 | 1 5 . . 1 4 1 Worker 2 | . 1 . . . 1 . Builder 1 | . . . . . 1 . Tunneler 4 | 4 . . . . . . Hauler 1 | . . . . . . 1 Recycler 5 | . 1 . . . 3 1 Operator 2 | . 2 . . . . . Watcher 3 | . 2 . . . 1 . Grunt 15 | . 3 3 . 3 5 1 Brawler 1 | . . . . 1 . . Duelist 1 | . . . . . 1 . Sentry 2 | . . . . . 1 1 Hunter 1 | . . . . . 1 . Best Kill Streak 12 | 3 3 2 . 3 12 2 Combat Bots Only 6 | . 1 2 . 3 6 1 Max Kills in Single Turn 3 | 1 1 1 . 1 3 1 Gunslinging . | . . . . . . . Exploded 2 | . . . . 1 2 . Melee . | . . . . . . . Uniques/NPCs Destroyed . | . . . . . . . Combat | -11 -10 -10 -10 -9 -8 -8 -------- Run | Yrd Mat Min Exi Min Mat Sto Hostile Shots Fired 192 | . 54 20 . 36 65 17 Missed 44 | . 12 4 . 6 20 2 Hits 148 | . 42 16 . 30 45 15 Melee 4 | . . . . 4 . . Projectile 144 | . 42 16 . 26 45 15 Critical Strikes 5 | . . 1 . 1 2 1 Damage Taken 1943 | . 463 234 . 377 645 224 Core 382 | . 45 29 . 138 138 32 Absorbed by Shields . | . . . . . . . Core Remaining (%) 57 | 100 . . . 15 . . Volleys Fired 124 | 9 38 13 . 17 29 18 Largest 2 | 2 2 2 . 2 2 2 Hottest 70 | 70 40 46 . 53 53 43 Shots Fired 232 | 18 76 26 . 22 54 36 Gun 212 | 18 76 26 . 18 38 36 Cannon . | . . . . . . . Launcher 20 | . . . . 4 16 . Special . | . . . . . . . Kinetic 210 | 16 76 26 . 18 38 36 Thermal 2 | 2 . . . . . . Explosive 20 | . . . . 4 16 . Electromagnetic . | . . . . . . . Robot Hit Streak 22 | 7 14 7 . 10 6 22 Robot Miss Streak 5 | 1 4 5 . 2 3 4 Penetration Max . | . . . . . . . Secondary Targets 1 | . . . . 1 . . Max Gunslinging Chain 1 | . . . . 1 . . Shots Hit Robots 172 | 11 45 17 12 19 36 32 Core Hits 92 | 5 16 8 . 12 37 14 Critical Kills 1 | . . 1 . . . . Critical Parts Destroyed 2 | . . . . . . 2 Critical Strikes 3 | . . 1 . . . 2 Destroy 3 | . . 1 . . . 2 Melee Attacks 19 | . 4 . 15 . . . Impact . | . . . . . . . Slashing . | . . . . . . . Piercing . | . . . . . . . Sneak Attacks 6 | . 2 . 4 . . . Combat Hostiles . | . . . . . . . Follow-up Attacks . | . . . . . . . Damage Inflicted 3216 | 113 469 277 . 458 1529 370 Guns 1691 | 113 469 277 . 226 236 370 Cannons . | . . . . . . . Explosions 1522 | . . . . 229 1293 . Melee . | . . . . . . . Ramming 3 | . . . . 3 . . Kinetic 1691 | 113 469 277 . 226 236 370 Thermal . | . . . . . . . Explosive 1522 | . . . . 229 1293 . Electromagnetic . | . . . . . . . Impact . | . . . . . . . Slashing . | . . . . . . . Piercing . | . . . . . . . Highest Corruption . | . . . . . . . Average Corruption . | . . . . . . . Corruption Purged . | . . . . . . . Corruption Blocked . | . . . . . . . Overload Shots . | . . . . . . . Overflow Damage 17 | . . . . 2 15 . Projectiles . | . . . . . . . Explosions 17 | . . . . 2 15 . Melee . | . . . . . . . Knockbacks . | . . . . . . . Impact . | . . . . . . . Kinetic . | . . . . . . . Secondary . | . . . . . . . Self-Inflicted Damage 28 | . . . . . 28 . Shots 4 | . . . . . 4 . Rammed 1 | . . . . 1 . . Targets Rammed 1 | . . . . 1 . . Kicked . | . . . . . . . Crushed . | . . . . . . . Highest Temperature 70 | 40 12 22 . 3 70 6 Average Temperature 17 | 23 7 11 . 3 32 4 Received Heat Transfer 912 | . 228 141 . 156 279 108 Siege Activations . | . . . . . . . Martial Activations . | . . . . . . . Shielding Activations . | . . . . . . . Robots Disrupted . | . . . . . . . Combat Hostiles . | . . . . . . . Robots Corrupted . | . . . . . . . Combat Hostiles . | . . . . . . . Parts Fried . | . . . . . . . Impact Corruptions . | . . . . . . . Robots Melted . | . . . . . . . Combat Hostiles . | . . . . . . . Parts Melted . | . . . . . . . Heat Transferred . | . . . . . . . Parts Sabotaged . | . . . . . . . Parts Stolen . | . . . . . . . Parts Stripped . | . . . . . . . Power Chain Reactions . | . . . . . . . Alert | -11 -10 -10 -10 -9 -8 -8 ------- Run | Yrd Mat Min Exi Min Mat Sto Maximum Alert Level 1 | . . . . . 1 . Low Security (%) 99 | 100 100 100 . 100 89 100 Level 1 . | . . . . . 10 . Level 2 . | . . . . . . . Level 3 . | . . . . . . . Level 4 . | . . . . . . . Level 5 . | . . . . . . . High Security . | . . . . . . . Max Security . | . . . . . . . Peak Influence 217 | 10 77 50 . 113 217 83 Initial 83 | . . 22 . . 31 83 Average 16 | . 9 6 . 21 56 49 Influence Increases 1073 | 20 274 70 . 215 346 148 Destroy 0b10 Robot/C 480 | . 60 60 . 140 180 40 Destroy 0b10 Robot/NC 90 | 20 30 . . . 30 10 Destroy Leader 118 | . 24 10 . 30 42 12 Allied During Kill 18 | . . . . 16 2 . Successful Hack 19 | . 10 . . . . 9 Disable Machine 30 | . . . . . 30 . Destroy Structure 93 | . . . . 29 62 2 Partial Spotted 15 | . 15 . . . . . Lose Combat Pursuer 210 | . 135 . . . . 75 Influence Decreases 1027 | 20 217 127 . 134 230 299 Entered New Map 199 | . . 35 . . 50 114 Time Decay 693 | 20 207 82 . 124 120 140 Lost Part 80 | . 10 10 . 10 20 30 Lost Ally 55 | . . . . . 40 15 Squads Dispatched 5 | . 2 . . . 1 2 Investigation . | . . . . . . . Extermination . | . . . . . . . Reinforcement 3 | . 2 . . . 1 . Assault 2 | . . . . . . 2 Garrison . | . . . . . . . Intercept . | . . . . . . . Searches Triggered . | . . . . . . . Construction Impeded 1 | . . . . . 1 . Haulers Reinforced . | . . . . . . . Active Scanning Responses . | . . . . . . . Cargo Convoy Interrupts . | . . . . . . . Stealth | -11 -10 -10 -10 -9 -8 -8 --------- Run | Yrd Mat Min Exi Min Mat Sto Distress Signals 8 | . 2 . . . 5 1 Communications Jammed . | . . . . . . . Distress Signals . | . . . . . . . Times Spotted 59 | . 22 3 . 7 18 9 Peak Tracking Total 6 | . 3 3 . 3 6 6 Tactical Retreats 7 | . 6 . . . . 1 Traps | -11 -10 -10 -10 -9 -8 -8 ------- Run | Yrd Mat Min Exi Min Mat Sto Traps Triggered . | . . . . . . . Indirectly . | . . . . . . . Trap Hack Attempts 10 | . 10 . . . . . Triggered . | . . . . . . . Disarmed 1 | . 1 . . . . . Reprogrammed . | . . . . . . . Reused . | . . . . . . . Traps Extracted . | . . . . . . . Installed . | . . . . . . . Triggered . | . . . . . . . Machines | -11 -10 -10 -10 -9 -8 -8 ---------- Run | Yrd Mat Min Exi Min Mat Sto Machines Disabled 2 | . . . . . 2 . Max in Single Turn 1 | . . . . . 1 . Machines Repaired . | . . . . . . . Machines Dismantled . | . . . . . . . Machines Sabotaged . | . . . . . . . Overloaded Fab Kills . | . . . . . . . Hacking | -11 -10 -10 -10 -9 -8 -8 --------- Run | Yrd Mat Min Exi Min Mat Sto Machines Accessed 8 | . 3 . 2 . 1 2 Terminals 6 | . 3 . . . 1 2 Fabricators . | . . . . . . . Repair Stations . | . . . . . . . Recycling Units . | . . . . . . . Scanalyzers . | . . . . . . . Garrison Access . | . . . . . . . Total Hacks 16 | . 9 . 2 . 2 3 Successful 9 | . 5 . 2 . . 2 Failed 7 | . 4 . . . 2 1 Catastrophic 1 | . . . . . 1 . Database Lockouts . | . . . . . . . Manual 9 | . 6 . 1 . 2 . Terminals 14 | . 9 . . . 2 3 Fabricators . | . . . . . . . Repair Stations . | . . . . . . . Recycling Units . | . . . . . . . Scanalyzers . | . . . . . . . Garrison Access . | . . . . . . . Terminal Hacks 6 | . 2 . 2 . . 2 Record 1 | . . . 1 . . . Prototype ID Bank 2 | . 1 . . . . 1 Open Door 1 | . . . . . . 1 Terminal Index 1 | . 1 . . . . . Proto ID Catalog 1 | . . . 1 . . . Fabricator Hacks . | . . . . . . . Repair Station Hacks . | . . . . . . . Recycling Unit Hacks . | . . . . . . . Scanalyzer . | . . . . . . . Garrison Access Hacks . | . . . . . . . Unauthorized Hacks 3 | . 3 . . . . . Terminals 3 | . 3 . . . . . Botnet 2 | . 2 . . . . . Operators 1 | . 1 . . . . . Fabricators . | . . . . . . . Repair Stations . | . . . . . . . Recycling Units . | . . . . . . . Scanalyzers . | . . . . . . . Garrison Access . | . . . . . . . Data Cores Recovered . | . . . . . . . Used . | . . . . . . . Hacking Detections 5 | . 3 . . . 1 1 Full Trace Events . | . . . . . . . Feedback Events . | . . . . . . . Feedback Blocked . | . . . . . . . Robot Schematics Acquired . | . . . . . . . Robots Built . | . . . . . . . Authchips . | . . . . . . . Time . | . . . . . . . Total Robot Build Rating . | . . . . . . . Part Schematics Acquired . | . . . . . . . Parts Built . | . . . . . . . Authchips . | . . . . . . . Time . | . . . . . . . Total Part Build Rating . | . . . . . . . Part Studies Acquired . | . . . . . . . Parts Repaired . | . . . . . . . Time . | . . . . . . . Parts Recycled . | . . . . . . . Recycled Matter . | . . . . . . . Retrieved Matter . | . . . . . . . Retrieved Components . | . . . . . . . Parts Scanalyzed . | . . . . . . . Part Schematics Acquired . | . . . . . . . Parts Damaged . | . . . . . . . Bothacking | -11 -10 -10 -10 -9 -8 -8 ------------ Run | Yrd Mat Min Exi Min Mat Sto Used RIF Installer . | . . . . . . . Robots Hacked 6 | . 2 . 4 . . . Non-combat 5 | . 2 . 3 . . . Combat 1 | . . . 1 . . . Robot Hacks Applied 6 | . 2 . 4 . . . parse_system 4 | . . . 4 . . . no_distress 1 | . 1 . . . . . find_recycling 1 | . 1 . . . . . Relay Couplers Released . | . . . . . . . Fabnet Peak Effective % . | . . . . . . . Robots Rewired . | . . . . . . . Allies Hacked . | . . . . . . . Hacks Repelled . | . . . . . . . Allies | -11 -10 -10 -10 -9 -8 -8 -------- Run | Yrd Mat Min Exi Min Mat Sto Total Allies 6 | . . 1 . 3 . 2 Largest Group 3 | . . 1 1 3 3 2 Highest-Rated Group 62 | . . 31 31 40 40 62 Highest-Rated Ally 31 | . . 31 31 16 16 31 Total Orders . | . . . . . . . Ally Attacks 36 | . . . . 10 11 15 Total Damage 370 | . . . . 92 90 188 Kills 4 | . . . . 3 1 . Allies Corrupted . | . . . . . . . Allies Melted . | . . . . . . . Intel | -11 -10 -10 -10 -9 -8 -8 ------- Run | Yrd Mat Min Exi Min Mat Sto Active Infowar (turns) 3924 | 23 2045 364 424 506 282 280 Sensors 582 | . . 158 424 . . . Terrain 1068 | . . . . 506 282 280 Seismic 2274 | 23 2045 206 . . . . Robot Analysis Total . | . . . . . . . Derelict Logs Recovered . | . . . . . . . Drone Launches . | . . . . . . . Drone Recoveries . | . . . . . . . Exploration | -11 -10 -10 -10 -9 -8 -8 ------------- Run | Yrd Mat Min Exi Min Mat Sto Turns Passed 4314 | 111 2045 491 468 637 282 280 Spaces Moved 1968 | 53 838 299 317 239 108 114 Core . | . . . . . . . Treads 333 | . . . . 239 94 . Legs 49 | 49 . . . . . . Wheels 1586 | 4 838 299 317 . 14 114 Hover . | . . . . . . . Flight . | . . . . . . . Fastest Speed 100 | 100 100 140 140 240 155 155 Average Speed 139 | 118 105 142 140 240 159 155 Slowest Speed 240 | 120 145 145 140 240 160 155 Overloaded Moves . | . . . . . . . Propulsion Burnouts . | . . . . . . . Robots Hopped . | . . . . . . . Potential Cave-ins . | . . . . . . . Cave-ins Triggered . | . . . . . . . Exploration Rate (%) 37 | 4 47 57 70 56 13 18 Regions Visited 6 Branch Regions 4 Pre-discovered Areas 2 | . . 1 1 . . . Known Exits Taken . | . . . . . . . Unknown Exits Taken 6 | 1 1 1 1 1 1 . Scrap Searched 2 | . . . . 2 . . Spaces Dug . | . . . . . . . Terrain Destroyed 112 | . . . . 39 73 . Melee . | . . . . . . . Projectile . | . . . . . . . AOE 112 | . . . . 39 73 . Terrain Rammed . | . . . . . . . Walls Destroyed . | . . . . . . . Machines Disabled . | . . . . . . . Actions | -11 -10 -10 -10 -9 -8 -8 --------- Run | Yrd Mat Min Exi Min Mat Sto Total 3310 | 84 1927 339 334 278 167 181 Wait 1118 | 12 1019 21 . 8 23 35 Move 1962 | 52 837 298 316 238 107 114 Hop . | . . . . . . . Pick Up 30 | 4 8 3 1 6 1 7 Fast Attach 3 | 1 . . . . 1 1 Attach 13 | . 1 3 . 4 4 1 Detach 1 | . . . 1 . . . Swap 21 | 3 5 1 1 4 2 5 Drop 8 | 3 5 . . . . . Fire 124 | 9 38 13 . 17 29 18 Melee 19 | . 4 . 15 . . . Ram . | . . . . . . . Kick . | . . . . . . . Crush 1 | . . . . 1 . . Escape Stasis . | . . . . . . . Rewire . | . . . . . . . Trap 10 | . 10 . . . . . Miscellaneous . | . . . . . . . Route ------- -11/Scrapyard -10/Materials (discovered 2 exits: [*Mat] / [*Min]) -10/Mines (discovered 3 exits: [*Mat] / *Exi / [*Sub]) -10/Exiles -9/Mines -8/Materials -8/Storage History --------- Turn | Location | Event 1 | -11/Scrapyard | Discovered new exit (range 1) 112 | -11/Scrapyard | Entered Materials 118 | -10/Materials | Discovered new exit (range 16) 303 | -10/Materials | Build established: Mutant 1956 | -10/Materials | Discovered new exit (range 15) 2157 | -10/Materials | Entered Mines 2164 | -10/Mines | Received a Rocket Launcher from a helpful Derelict 2234 | -10/Mines | Discovered new exit (range 6) 2313 | -10/Mines | Discovered new exit (range 4) 2401 | -10/Mines | Lost 3 parts (1p1n1u) 2409 | -10/Mines | Escorted by a lone wolf Derelict 2449 | -10/Mines | Learned location of Storage (-8) 2643 | -10/Mines | Deemed a non-threat by the Exiles lab entrance 2643 | -10/Mines | Discovered new exit (range 5) 2648 | -10/Mines | Entered Exiles 2648 | -10/Exiles | Accompanied by 1 ally 2681 | -10/Exiles | Met 8R-AWN 2707 | -10/Exiles | Met EX-HEX 2848 | -10/Exiles | Met EX-DEC 2900 | -10/Exiles | Met EX-BIN 2927 | -10/Exiles | Aligned with FarCom system 2928 | -10/Exiles | Given EX-Vault access code 2964 | -10/Exiles | Opened EX-Vault 2973 | -10/Exiles | Found 0b10 Alert Chip 3002 | -10/Exiles | Warned to stay clear of 0b10 Research branches 3050 | -10/Exiles | Learned location of Zion (-7) 3101 | -10/Exiles | Discovered new exit (range 14) 3116 | -10/Exiles | Left Exiles lab with 0b10 Alert Chip 3116 | -10/Exiles | Entered Mines 3123 | -9/Mines | Core integrity fell below 50% 3135 | -9/Mines | Met a Derelict bent on vengeance 3142 | -9/Mines | Core integrity fell below 20% 3175 | -9/Mines | Lost 3 parts (1p1n1w) 3361 | -9/Mines | Assisted by bots powering up and referring to "LRC-V3" 3705 | -9/Mines | Build established: Skirmisher 3746 | -9/Mines | Discovered new exit (range 3) 3753 | -9/Mines | Entered Materials 3753 | -8/Materials | Accompanied by 3 allies 3753 | -8/Materials | Evolved 4 slots: Propulsion x2, Utility x2 3874 | -8/Materials | Discovered new exit (range 9) 4035 | -8/Materials | Entered Storage 4194 | -8/Storage | Met a pair of Derelict thieves 4315 | -8/Storage | Self-destructed Last Messages --------------- 04202_ Acquired Imp. Flight Unit. 04204_ ALERT: Breach in storage area. Dispatching assault force. 04204_ 12-EMX(g): "So much for stealth, let's take what we have and get out of here before it's too late." 04204_ Acquired Imp. Flight Unit. 04218_ Connecting with Door Terminal... >>Open(Door) Sealed Heavy Doors opened. 04236_ K-01 Serf cleans the Terminal. 04238_ C-45 Heavy ARC bursts open, deploying its payload. 04238_ G-47 Trooper unfolds itself. 04250_ Acquired 98 matter. 04264_ K-01 Serf cleans the Transport Mainframe. 04301_ G-47 Trooper destroyed. 04309_ Lgt. Treads destroyed. 04313_ Ion Engine destroyed. Map ----- +----------------------------------------------------+ | ?????????????? ? ????????????????????????????????? | | ??????? ?????????????????????????????????????????? | | ?? ? ?? ????????????????????????????????????????? | | ?????????? ??????????????????????????????????????? | | ???????????????? ????????????????????????????????? | | ?? #?#?##???? ?#???????????????????"?????????????? | | ?? ??? ? ?? +?????????????????????????????????? | | ????? #??#? # ?"""???#?##? ??????????????????? | | ?#???? #??## # ? ? ??#####? ?? ????????????? | | ?+??? ? ###?# #??#?#?##?#?##?? ? ??#??????????? | | #??# ##+#####+#??#?####?######"T?###?? ?????????? | | ?##? # ###?##?########?#####??? ""?" ????? | | ???##?# #############?########## ?????? ??? | | #?##?# ! #?#########?#?##]] [[[##??? ? ? ??? | | ????? # #??##?#######?##]] [[[##?"?"? ????? | | ??? ? + ########?#######]] !## ??"" ? ??? | | ## ##?# ! #########?###### !## "?"??? ?? | | ?# #### #####?############ ### "?"? ????? | | ?????## ! ############?####T #? ?? ????? | | #?????# ################## ####??#????#? | | #????######+##+############T######+######## % ?? | | #???## g g g ggggb "?"?? | | ?? #?# k gi #######??????? | | ?????# gu #######? ""??? | | ## ?#######+############g#########+####?### ??"? | | #? #???# = #?### !@ ### ###### "? ? | | ????#### #####"""" ###T ###?#? ???"? | | ????##?# ! """ ##??#"""" ####" "#####?#? ? ??? | | ?????#?# """ ##?##"""" ## ######?###??? | | ?# ?#?## """ #####"""" ## #####?###?#?? | | ? ?#???# """ ##### ## ==#??#?##?#?#?? | | ???#???# """ ####T ## = =##?#?###?##?? | | ??#??#?# ##### ###########???#??#??? | | ?#??#??# ##### ####?########?##?#??? | | #???????###############################?#?????#??? | | | | | | | | | | | | | | | | | | | | | | | | | | | | | | | +----------------------------------------------------+ Best States ------------- Heat Dissipation 31 Energy Generation 10 Energy Capacity 250 Matter Stores 300 Matter Capacity 300 Sight Range 16 Robot Scan Range 14 Terrain Scan Range 16 Terrain Scan Density 85 Armor Coverage 150 Evasion (%) 55 Recoil Reduction 4 Item Schematics ----------------- None Robot Schematics ------------------ None Fabricated ------------ Nothing Repaired ---------- Nothing Studied --------- None Alien Tech Used ----------------- None Achievements -------------- Analysis Probe Challenges ------------ None Game ------ Seed PhasingComponentCleaver Manual? 0 Play Time 00:28:51 Cumulative 28.4 hours Start 2026.07.22 @ 18:23:48 End 2026.07.22 @ 18:53:46 Sessions 1 Manual Loads 0 Difficulty Rogue Special Mode None Game No. 37 Rogue 37 Adventurer 0 Explorer 0 Win Type - Total 0 Types 0/0/0/0/0/0/0/0/0/0 Lore% 22 Gallery% 22 Achievement% 21 Wizard Run 0 Options --------- Layout 2 ASCII 0 Keyboard 1 Movement Numpad Keybinds 1 Fullscreen 2 Font 24/Terminus Map View 50x44 Zoom Use 0% Tactical HUD 1 Map Filters NONE Filters LOW_CONTRAST(18,8,8)|SATURATION(90)|BRIGHTNESS(90) Steam 1 RUN: 004c2ec5-e050-4679-9c52-89dcc384177a